bitfinex/quotes_SOLUSD_20250821
["timestamp","ask_amount","ask_price","bid_price","bid_amount"]
[1755783638122,26.65780317,185.28,185.23,12.33220916]
[1755783638541,12.33220916,185.26,185.21,12.33220916]
[1755783638875,12.33220916,185.22,185.18,14.325594]
[1755783639168,13.59559401,185.19,185.14,12.33220916]
[1755783639330,13.59559401,185.19,185.15,13.05220916]
[1755783639523,13.59559401,185.19,185.15,17.7331819]
[1755783639853,13.59559401,185.25,185.18,12.33220916]
[1755783640036,39.59559401,185.25,185.21,12.33220916]
[1755783640651,40.26559401,185.25,185.2,12.33220916]
[1755783640852,13.59559401,185.26,185.23,12.33220916]
[1755783641053,13.59559401,185.26,185.24,12.33220916]
[1755783641267,13.59559401,185.26,185.19,0.72]
[1755783641427,13.59559401,185.26,185.22,12.33220916]
[1755783641833,13.59559401,185.23,185.17,26.0]
[1755783642056,39.06220916,185.28,185.22,12.33220916]
[1755783642340,39.06220916,185.28,185.17,26.0]
[1755783642341,13.65559401,185.28,185.27,12.33220916]
[1755783642659,0.06,185.28,185.27,12.33220916]
[1755783643052,0.06,185.28,185.27,13.05220916]
[1755783643676,0.06,185.28,185.27,17.72973709]
[1755783643851,0.06,185.28,185.27,12.33220916]
[1755783644160,0.06,185.28,185.27,18.44973709]
[1755783645953,12.33220916,185.4,185.27,18.44973709]
[1755783645954,13.00220916,185.44,185.3,26.0]
[1755783646163,13.59559401,185.41,185.37,12.33220916]
[1755783646343,12.33220916,185.4,185.35,12.33220916]
[1755783646665,13.59559401,185.39,185.36,12.33220916]
[1755783646880,13.59559401,185.41,185.38,12.33220916]
[1755783647055,26.0,185.42,185.38,12.33220916]
[1755783647056,13.59559401,185.42,185.38,12.33220916]
[1755783647457,13.05220916,185.41,185.36,12.33220916]
[1755783647857,13.59559401,185.42,185.38,12.33220916]
[1755783648158,0.72,185.41,185.37,12.33220916]
[1755783648757,25.92780317,185.42,185.34,5.39548937]
[1755783648758,13.59559401,185.42,185.38,12.33220916]
[1755783649189,13.05220916,185.41,185.34,5.39548937]
[1755783649388,12.33220916,185.41,185.36,12.33220916]
[1755783649696,13.59559401,185.39,185.35,12.33220916]
[1755783649871,13.59559401,185.39,185.35,17.72732641]
[1755783650073,13.59559401,185.39,185.35,12.33220916]
[1755783650400,25.92780317,185.39,185.3,46.35]
[1755783650707,13.59559401,185.33,185.32,13.752209]
[1755783651001,25.92780317,185.33,185.28,17.72940726]
[1755783651315,12.33220916,185.33,185.28,17.72940726]
[1755783651505,13.59559401,185.31,185.27,12.33220916]
[1755783651676,25.92780317,185.32,185.26,5.39780556]
[1755783651875,13.59559401,185.29,185.25,13.595594]
[1755783652102,25.92780317,185.29,185.24,12.33220916]
[1755783652409,13.59559401,185.27,185.23,12.33220916]
[1755783652573,12.33220916,185.29,185.23,0.71]
[1755783652776,12.33220916,185.3,185.25,12.33220916]
[1755783653103,13.59559401,185.32,185.28,12.33220916]
[1755783653412,13.59559401,185.32,185.29,12.33220916]
[1755783653586,26.0,185.35,185.31,12.33220916]
[1755783653771,13.05220916,185.37,185.32,12.33220916]
[1755783653977,13.59559401,185.36,185.32,12.33220916]
[1755783654186,13.59559401,185.36,185.33,12.33220916]
[1755783654391,13.59559401,185.36,185.34,12.33220916]
[1755783654779,13.59559401,185.36,185.32,0.71]
[1755783654980,13.59559401,185.36,185.34,12.33220916]
[1755783655199,13.59559401,185.4,185.35,13.04220916]
[1755783655374,13.59559401,185.4,185.36,12.33220916]
[1755783655576,13.59559401,185.4,185.35,0.71]
[1755783655577,25.92780317,185.42,185.37,12.33220916]
[1755783655911,26.0,185.41,185.37,12.33220916]
[1755783656067,13.59559401,185.4,185.37,12.33220916]
[1755783656272,13.59559401,185.37,185.32,16.221916]
[1755783656480,13.59559401,185.37,185.33,12.33220916]
[1755783656699,13.59559401,185.37,185.33,13.04220916]
[1755783656907,25.92780317,185.35,185.28,5.39723661]
[1755783657104,25.92780317,185.35,185.3,12.33220916]
[1755783657105,13.59559401,185.35,185.3,12.33220916]
[1755783657278,13.59559401,185.39,185.33,12.33220916]
[1755783657482,13.05220916,185.38,185.33,12.33220916]
[1755783657791,13.59559401,185.36,185.3,5.39642815]
[1755783658103,12.33220916,185.35,185.3,12.33220916]
[1755783658291,13.59559401,185.33,185.27,22.33354958]
[1755783658607,25.92780317,185.33,185.28,12.33220916]
[1755783658776,13.59559401,185.33,185.28,12.33220916]
[1755783659180,14.31559401,185.33,185.28,12.33220916]
[1755783659383,13.59559401,185.33,185.29,12.33220916]
[1755783659799,12.33220916,185.35,185.3,12.33220916]
[1755783659983,13.05220916,185.35,185.3,12.33220916]
[1755783660197,13.59559401,185.36,185.3,5.39651843]
[1755783660389,13.59559401,185.36,185.25,54.59026716]
[1755783660390,25.92780317,185.36,185.31,12.33220916]
[1755783660792,25.92780317,185.32,185.25,16.258058]
[1755783661013,25.92780317,185.26,185.25,0.03]
[1755783661391,26.64780317,185.26,185.25,0.03]
[1755783661587,52.64780317,185.26,185.25,0.03]
[1755783662003,39.59559401,185.26,185.25,0.03]
[1755783662315,52.64780317,185.26,185.25,0.03]
[1755783662499,40.31559401,185.26,185.25,0.03]
[1755783662687,52.64780317,185.26,185.25,0.03]
[1755783664308,26.64780317,185.26,185.25,0.03]
[1755783664683,39.59559401,185.26,185.25,0.03]
[1755783664887,51.92780317,185.26,185.25,0.03]
[1755783665183,52.64780317,185.26,185.25,0.03]
[1755783665387,51.92780317,185.26,185.25,0.03]
[1755783665700,25.92780317,185.27,185.25,0.03]
[1755783666015,13.59559401,185.27,185.25,0.03]
[1755783666391,13.59559401,185.27,185.25,12.36220916]
[1755783666596,85.17559401,185.3,185.25,0.03]
[1755783666807,13.59559401,185.31,185.26,12.33220916]
[1755783667114,13.59559401,185.31,185.25,0.03]
[1755783667115,13.59559401,185.28,185.25,0.03]
[1755783667721,13.59559401,185.26,185.25,0.03]
[1755783668015,13.59559401,185.3,185.25,12.36220916]
[1755783668197,25.92780317,185.3,185.25,12.36220916]
[1755783668390,25.92780317,185.3,185.25,0.03]
[1755783668391,12.33220916,185.26,185.25,0.03]
[1755783669203,26.64780317,185.26,185.25,0.03]
[1755783669516,25.92780317,185.26,185.25,0.03]
[1755783669691,13.59559401,185.26,185.25,0.03]
[1755783670704,25.92780317,185.26,185.25,0.03]
[1755783670894,13.59559401,185.26,185.25,0.03]
[1755783671396,26.64780317,185.26,185.25,0.03]
[1755783671593,25.92780317,185.26,185.25,0.03]
[1755783671902,13.59559401,185.29,185.25,12.36220916]
[1755783672105,12.33220916,185.28,185.25,0.03]
[1755783672506,13.59559401,185.29,185.25,0.03]
[1755783672811,13.59559401,185.29,185.25,13.07220916]
[1755783673000,13.59559401,185.29,185.26,13.04220916]
[1755783673315,13.59559401,185.29,185.25,0.03]
[1755783673619,13.59559401,185.29,185.27,12.33220916]
[1755783673817,13.59559401,185.32,185.28,13.04220916]
[1755783674021,13.59559401,185.32,185.3,12.33220916]
[1755783674206,0.78,185.36,185.31,12.33220916]
[1755783674207,0.06,185.36,185.31,12.33220916]
[1755783674405,0.06,185.36,185.31,0.71]
[1755783674406,13.65559401,185.36,185.31,0.71]
[1755783674618,39.65559401,185.36,185.32,12.33220916]
[1755783674799,39.65559401,185.36,185.31,0.71]
[1755783674800,51.98780317,185.36,185.31,12.33220916]
[1755783675113,12.33220916,185.33,185.28,26.0]
[1755783675317,13.59559401,185.3,185.26,38.33220916]
[1755783675615,0.72,185.32,185.27,12.33220916]
[1755783675616,12.33220916,185.32,185.27,12.33220916]
[1755783675789,12.33220916,185.32,185.26,26.0]
[1755783675790,45.56,185.34,185.3,12.33220916]
[1755783675991,0.72,185.35,185.27,0.71]
[1755783675992,13.59559401,185.33,185.27,0.71]
[1755783676211,13.59559401,185.33,185.3,12.33220916]
[1755783676410,13.59559401,185.31,185.27,12.33220916]
[1755783676589,26.64780317,185.31,185.26,26.0]
[1755783676794,25.92780317,185.31,185.26,26.66]
[1755783677030,14.31559401,185.31,185.26,26.0]
[1755783677193,13.59559401,185.31,185.28,12.33220916]
[1755783677389,13.59559401,185.33,185.3,12.33220916]
[1755783677626,26.64780317,185.35,185.26,0.66]
[1755783677796,0.06,185.36,185.26,0.66]
[1755783677797,13.59559401,185.31,185.27,12.33220916]
[1755783677989,13.59559401,185.32,185.28,12.33220916]
[1755783678521,25.92780317,185.32,185.27,12.33220916]
[1755783678723,13.59559401,185.27,185.25,0.03]
[1755783679019,13.59559401,185.26,185.25,0.03]
[1755783679259,26.0,185.31,185.26,0.66]
[1755783679420,13.59559401,185.3,185.27,12.33220916]
[1755783679738,13.59559401,185.32,185.29,12.33220916]
[1755783679942,13.59559401,185.32,185.28,0.66]
[1755783680145,13.59559401,185.32,185.29,12.33220916]
[1755783680719,13.59559401,185.32,185.29,12.99220916]
[1755783680920,13.59559401,185.32,185.25,0.03]
[1755783680921,13.11220916,185.36,185.31,12.33220916]
[1755783681230,0.06,185.36,185.35,12.33220916]
[1755783681443,0.06,185.36,185.35,12.99220916]
[1755783681948,0.06,185.36,185.35,0.66]
[1755783682156,0.06,185.36,185.35,12.99220916]
[1755783682344,0.06,185.4,185.35,44.38740743]
[1755783682552,0.06,185.4,185.37,50.66441832]
[1755783682850,0.06,185.4,185.39,12.33220916]
[1755783683222,0.06,185.4,185.38,0.66]
[1755783683419,0.06,185.4,185.34,0.66]
[1755783683651,0.06,185.4,185.39,12.33220916]
[1755783683833,0.06,185.4,185.39,12.99220916]
[1755783684356,0.06,185.4,185.34,0.66]
[1755783684563,0.06,185.4,185.37,12.33220916]
[1755783685050,0.06,185.4,185.38,12.33220916]
[1755783685223,0.06,185.4,185.33,26.0]
[1755783685224,13.65559401,185.4,185.33,26.0]
[1755783685423,13.65559401,185.4,185.36,12.33220916]
[1755783685835,13.65559401,185.4,185.33,26.66]
[1755783685836,0.06,185.4,185.37,12.33220916]
[1755783686146,0.06,185.4,185.36,12.33220916]
[1755783686319,0.06,185.4,185.3,45.56]
[1755783686320,0.06,185.4,185.39,12.33220916]
[1755783686723,13.59559401,185.46,185.39,12.99220916]
[1755783686927,0.2,185.47,185.45,12.33220916]
[1755783687143,0.2,185.47,185.46,12.33220916]
[1755783687533,0.2,185.47,185.45,12.33220916]
[1755783688269,0.2,185.47,185.46,12.33220916]
[1755783689551,0.2,185.47,185.4,0.66]
[1755783689854,0.2,185.47,185.45,12.33220916]
[1755783690051,0.2,185.47,185.46,12.33220916]
[1755783690229,0.2,185.47,185.44,12.33220916]
[1755783690452,13.79559401,185.47,185.44,12.33220916]
[1755783690658,14.51559401,185.47,185.44,12.33220916]
[1755783690872,14.51559401,185.47,185.39,0.66]
[1755783691157,13.05220916,185.46,185.41,12.33220916]
[1755783691378,13.05220916,185.46,185.28,124.22152957]
[1755783691379,12.33220916,185.43,185.38,12.33220916]
[1755783691585,14.31559401,185.42,185.36,0.66]
[1755783691787,13.59559401,185.45,185.39,12.33220916]
[1755783691966,0.72,185.44,185.39,12.33220916]
[1755783692173,0.72,185.44,185.36,26.66]
[1755783692174,13.59559401,185.42,185.36,26.66]
[1755783692387,13.59559401,185.42,185.39,12.33220916]
[1755783692591,0.72,185.43,185.36,26.66]
[1755783692592,13.59559401,185.45,185.41,12.33220916]
[1755783692769,13.59559401,185.45,185.44,12.33220916]
[1755783693104,13.59559401,185.45,185.42,12.33220916]
[1755783693269,0.2,185.47,185.44,12.33220916]
[1755783693579,0.2,185.47,185.46,12.33220916]
[1755783694690,0.2,185.47,185.43,0.66]
[1755783694986,0.2,185.47,185.39,31.39399216]
[1755783694987,0.2,185.47,185.46,12.33220916]
[1755783695567,0.2,185.47,185.46,12.99220916]
[1755783696710,0.06,185.49,185.46,12.99220916]
[1755783696871,0.06,185.49,185.48,12.33220916]
[1755783697373,0.06,185.49,185.48,12.99220916]
[1755783698383,0.06,185.49,185.48,12.33220916]
[1755783699004,0.06,185.49,185.48,12.99220916]
[1755783699383,0.06,185.49,185.45,0.66]
[1755783699703,0.06,185.49,185.48,12.33220916]
[1755783699879,0.06,185.49,185.45,26.0]
[1755783699880,0.06,185.49,185.47,12.33220916]
[1755783700284,0.06,185.49,185.44,45.34]
[1755783700485,0.06,185.49,185.47,12.33220916]
[1755783700804,0.06,185.49,185.48,12.33220916]
[1755783701001,0.06,185.49,185.45,0.66]
[1755783701182,0.06,185.49,185.48,12.33220916]
[1755783702391,0.78,185.49,185.46,12.33220916]
[1755783702918,0.78,185.49,185.41,0.66]
[1755783702919,13.59559401,185.48,185.41,0.66]
[1755783703075,0.72,185.47,185.41,12.33220916]
[1755783703275,25.92780317,185.46,185.41,12.33220916]
[1755783703495,13.59559401,185.44,185.39,12.33220916]
[1755783703701,25.92780317,185.44,185.39,12.33220916]
[1755783703904,14.31559401,185.44,185.39,12.33220916]
[1755783704182,13.05220916,185.48,185.4,0.66]
[1755783704404,13.05220916,185.48,185.44,12.33220916]
[1755783704405,0.72,185.48,185.44,12.33220916]
[1755783704575,0.72,185.48,185.4,0.66]
[1755783704781,0.72,185.48,185.45,12.33220916]
[1755783705212,39.65559401,185.49,185.46,12.33220916]
[1755783705508,39.65559401,185.49,185.45,12.33220916]
[1755783705719,40.37559401,185.49,185.45,12.33220916]
[1755783705925,40.37559401,185.49,185.42,0.66]
[1755783705926,13.05220916,185.48,185.42,12.33220916]
[1755783706087,25.92780317,185.47,185.42,12.33220916]
[1755783706280,0.72,185.46,185.43,12.33220916]
[1755783706485,0.72,185.45,185.41,12.33220916]
[1755783706701,25.92780317,185.47,185.41,12.33220916]
[1755783706915,0.71,185.44,185.4,12.33220916]
[1755783707099,13.59559401,185.46,185.41,12.33220916]
[1755783707297,0.06,185.49,185.44,12.33220916]
[1755783707298,13.65559401,185.49,185.44,12.33220916]
[1755783707499,13.65559401,185.49,185.45,12.33220916]
[1755783707705,13.65559401,185.49,185.42,0.71]
[1755783707706,0.06,185.49,185.46,12.33220916]
[1755783708013,0.06,185.49,185.48,12.33220916]
[1755783708181,0.06,185.49,185.46,12.33220916]
[1755783708511,0.06,185.49,185.45,12.33220916]
[1755783709011,0.77,185.49,185.45,12.33220916]
[1755783709200,0.06,185.49,185.47,12.33220916]
[1755783709692,0.06,185.49,185.48,12.33220916]
[1755783709895,0.06,185.49,185.48,13.04220916]
[1755783710292,0.06,185.49,185.48,12.33220916]
[1755783710612,0.06,185.49,185.48,13.04220916]
[1755783712300,0.06,185.49,185.48,44.43362602]
[1755783712688,0.06,185.49,185.48,18.43362602]
[1755783712895,0.06,185.51,185.48,30.76583518]
[1755783713102,0.06,185.51,185.5,50.66441832]
[1755783713307,0.06,185.51,185.5,83.67220916]
[1755783713510,0.06,185.51,185.5,84.38220916]
[1755783714018,0.06,185.51,185.5,83.65220916]
[1755783714385,0.06,185.51,185.5,89.75304473]
[1755783714790,0.06,185.51,185.5,102.08525389]
[1755783715211,0.06,185.51,185.5,89.75304473]
[1755783715423,0.06,185.51,185.5,44.43304473]
[1755783715630,0.06,185.51,185.5,89.75304473]
[1755783717992,0.06,185.51,185.5,76.08525389]
[1755783719016,0.06,185.51,185.5,18.43304473]
[1755783719207,0.06,185.51,185.5,63.75304473]
[1755783719716,0.06,185.51,185.5,18.43304473]
[1755783719904,0.06,185.51,185.5,63.75304473]
[1755783720217,0.06,185.51,185.5,76.08525389]
[1755783720412,0.06,185.51,185.5,59.4838856]
[1755783721329,0.06,185.51,185.5,53.38305003]
[1755783721623,0.06,185.51,185.5,84.7738856]
[1755783722122,0.77,185.51,185.45,0.03]
[1755783722306,0.77,185.51,185.46,45.32]
[1755783722500,0.71,185.5,185.48,8.06305003]
[1755783722820,0.06,185.51,185.49,45.32]
[1755783722991,0.06,185.51,185.47,8.06305003]
[1755783723198,0.06,185.51,185.5,8.06305003]
[1755783724027,0.06,185.51,185.5,53.36305003]
[1755783724202,0.06,185.51,185.5,8.06305003]
[1755783724411,0.77,185.51,185.5,53.36305003]
[1755783724812,0.06,185.51,185.5,53.36305003]
[1755783725296,0.77,185.51,185.47,79.8]
[1755783725514,0.77,185.51,185.47,45.3]
[1755783725828,0.77,185.51,185.45,0.03]
[1755783725829,34.06305003,185.5,185.45,0.03]
[1755783726130,8.06305003,185.46,185.45,0.03]
[1755783726422,21.65864404,185.46,185.45,0.03]
[1755783726624,22.36864404,185.46,185.45,0.03]
[1755783728428,26.65391848,185.46,185.45,0.03]
[1755783729030,14.30559401,185.46,185.45,0.03]
[1755783729235,26.65391848,185.46,185.45,0.03]
[1755783729424,14.30559401,185.46,185.45,0.03]
[1755783729630,0.71,185.46,185.45,0.03]
[1755783729825,26.71,185.46,185.45,0.03]
[1755783730324,40.30559401,185.46,185.45,0.03]
[1755783730508,52.65391848,185.46,185.45,0.03]
[1755783731229,56.27175516,185.46,185.45,0.03]
[1755783731610,40.30559401,185.46,185.45,0.03]
[1755783732335,52.65391848,185.46,185.45,0.03]
[1755783734324,59.07939692,185.46,185.45,0.03]
[1755783735141,55.46220533,185.46,185.45,0.03]
[1755783735435,40.30559401,185.46,185.45,0.03]
[1755783735623,39.59559401,185.46,185.45,0.03]
[1755783735829,52.65391848,185.46,185.45,0.03]
[1755783736335,40.30559401,185.46,185.45,0.03]
[1755783736715,52.65391848,185.46,185.45,0.03]
[1755783738124,40.30559401,185.46,185.45,0.03]
[1755783738323,40.27559401,185.46,185.45,0.03]
[1755783738524,39.59559401,185.46,185.45,0.03]
[1755783738934,52.62391848,185.46,185.45,0.03]
[1755783739262,2.80802251,185.49,185.45,12.37832447]
[1755783739446,0.06,185.51,185.48,12.34832447]
[1755783739851,0.06,185.51,185.47,12.34832447]
[1755783740163,13.59559401,185.49,185.46,12.34832447]
[1755783740319,0.68,185.48,185.45,0.03]
[1755783740646,13.59559401,185.49,185.45,12.37832447]
[1755783740840,14.27559401,185.49,185.45,0.03]
[1755783741019,14.27559401,185.49,185.45,12.37832447]
[1755783741540,14.27559401,185.49,185.45,0.03]
[1755783741924,14.27559401,185.49,185.45,12.37832447]
[1755783742129,14.27559401,185.49,185.45,0.03]
[1755783742439,25.94391848,185.47,185.45,0.03]
[1755783743021,26.62391848,185.46,185.45,0.03]
[1755783744417,14.27559401,185.46,185.45,0.03]
[1755783744618,13.59559401,185.46,185.45,0.03]
[1755783744834,0.68,185.5,185.45,12.37832447]
[1755783745026,13.59559401,185.49,185.46,12.34832447]
[1755783745442,13.59559401,185.49,185.45,12.37832447]
[1755783745741,14.27559401,185.49,185.45,12.37832447]
[1755783746249,13.59559401,185.49,185.45,12.37832447]
[1755783746621,14.27559401,185.49,185.45,12.37832447]
[1755783747044,14.27559401,185.49,185.45,0.03]
[1755783747227,13.59559401,185.47,185.45,0.03]
[1755783747553,12.34832447,185.46,185.45,0.03]
[1755783747719,51.94391848,185.44,185.43,0.03]
[1755783747926,39.59559401,185.44,185.43,0.03]
[1755783748127,52.62391848,185.44,185.43,0.03]
[1755783748426,52.62391848,185.44,185.41,0.03]
[1755783748427,13.59559401,185.43,185.41,0.03]
[1755783748636,97.22391848,185.42,185.41,0.03]
[1755783748953,97.90391848,185.42,185.41,0.03]
[1755783749621,77.29707995,185.42,185.41,0.03]
[1755783749822,39.59559401,185.38,185.28,12.34832447]
[1755783750048,25.94391848,185.37,185.29,12.34832447]
[1755783750252,25.94391848,185.37,185.31,12.34832447]
[1755783750554,13.59559401,185.37,185.33,12.34832447]
[1755783751235,13.59559401,185.37,185.33,13.02832447]
[1755783752067,13.59559401,185.37,185.35,12.34832447]
[1755783752250,13.59559401,185.37,185.33,0.68]
[1755783752559,26.62391848,185.37,185.3,12.34832447]
[1755783752962,26.62391848,185.37,185.29,0.68]
[1755783752963,52.62391848,185.37,185.29,0.68]
[1755783753138,97.90391848,185.37,185.28,0.68]
[1755783753330,97.90391848,185.37,185.28,12.34832447]
[1755783754037,71.90391848,185.37,185.27,12.37832447]
[1755783754241,71.90391848,185.37,185.27,0.03]
[1755783754242,77.29853465,185.37,185.27,0.03]
[1755783754636,80.90644729,185.37,185.27,0.03]
[1755783755149,75.51183112,185.37,185.27,0.03]
[1755783755459,71.90391848,185.37,185.32,0.03]
[1755783756158,25.94391848,185.37,185.32,0.03]
[1755783756529,26.62391848,185.37,185.32,0.03]
[1755783757650,32.01853465,185.37,185.32,0.03]
[1755783758056,26.62391848,185.37,185.32,0.03]
[1755783758269,71.90391848,185.37,185.32,0.03]
[1755783759653,26.62391848,185.37,185.32,0.03]
[1755783759854,4.98580874,185.46,185.36,13.05832447]
[1755783759855,0.06,185.45,185.36,13.05832447]
[1755783760168,2.80836866,185.44,185.41,12.34832447]
[1755783760341,2.80836866,185.44,185.38,0.68]
[1755783760534,2.80836866,185.44,185.4,12.34832447]
[1755783760839,2.80836866,185.44,185.42,12.34832447]
[1755783761156,2.80836866,185.44,185.42,0.68]
[1755783761340,2.80836866,185.44,185.36,0.03]
[1755783761341,13.59559401,185.43,185.4,12.34832447]
[1755783761540,13.59559401,185.43,185.4,0.68]
[1755783761777,13.59559401,185.43,185.36,0.03]
[1755783761778,13.59559401,185.43,185.39,12.34832447]
[1755783762375,13.59559401,185.43,185.39,13.02832447]
[1755783762571,13.59559401,185.43,185.39,12.34832447]
[1755783762738,12.40832447,185.45,185.4,0.68]
[1755783762935,13.59559401,185.43,185.4,0.68]
[1755783763238,45.28,185.42,185.4,0.68]
[1755783763448,45.28,185.42,185.4,13.02832447]
[1755783764141,45.28,185.42,185.41,13.02832447]
[1755783764841,0.06,185.45,185.41,13.02832447]
[1755783765044,0.06,185.45,185.44,12.34832447]
[1755783765570,0.06,185.45,185.44,13.02832447]
[1755783767279,0.06,185.45,185.44,0.68]
[1755783767449,0.06,185.45,185.44,13.02832447]
[1755783767648,0.06,185.45,185.43,12.34832447]
[1755783768359,0.06,185.45,185.44,13.06832447]
[1755783768760,45.32,185.49,185.44,13.06832447]
[1755783769057,45.32,185.49,185.48,12.34832447]
[1755783769297,45.32,185.49,185.48,13.06832447]
[1755783769298,0.06,185.49,185.48,13.06832447]
[1755783770569,0.06,185.49,185.48,12.34832447]
[1755783771245,0.06,185.49,185.45,0.72]
[1755783771450,0.06,185.49,185.48,12.34832447]
[1755783772266,0.06,185.49,185.46,0.72]
[1755783772457,0.06,185.49,185.48,12.34832447]
[1755783773691,0.06,185.49,185.44,0.72]
[1755783773874,0.06,185.49,185.48,12.34832447]
[1755783774085,0.06,185.49,185.46,12.34832447]
[1755783774297,0.06,185.49,185.45,12.34832447]
[1755783774590,26.60391848,185.48,185.4,0.72]
[1755783774880,26.60391848,185.48,185.4,12.34832447]
[1755783774881,12.34832447,185.46,185.4,12.34832447]
[1755783775053,13.59559401,185.45,185.4,12.34832447]
[1755783775255,12.34832447,185.46,185.4,12.34832447]
[1755783775463,13.59559401,185.48,185.39,12.34832447]
[1755783775464,0.66,185.45,185.39,12.34832447]
[1755783775668,13.59559401,185.43,185.39,12.34832447]
[1755783776078,13.59559401,185.45,185.41,12.34832447]
[1755783776659,12.34832447,185.46,185.38,85.19431365]
[1755783776660,71.22,185.47,185.44,12.34832447]
[1755783776856,13.59559401,185.46,185.43,12.34832447]
[1755783777469,14.25559401,185.46,185.43,12.34832447]
[1755783777666,14.25559401,185.46,185.37,0.03]
[1755783777667,13.59559401,185.42,185.37,0.03]
[1755783777888,12.34832447,185.39,185.37,0.03]
[1755783778087,14.25559401,185.42,185.37,0.03]
[1755783778285,13.59559401,185.42,185.37,12.37832447]
[1755783778464,0.06,185.49,185.37,12.37832447]
[1755783778465,0.06,185.49,185.4,12.34832447]
[1755783778786,13.59559401,185.44,185.4,12.34832447]
[1755783779570,13.59559401,185.42,185.39,0.03]
[1755783779993,26.60391848,185.42,185.39,0.03]
[1755783780361,25.94391848,185.42,185.39,0.03]
[1755783780557,25.94391848,185.44,185.39,13.09832447]
[1755783780775,13.59559401,185.44,185.4,12.34832447]
[1755783780992,13.59559401,185.45,185.41,12.34832447]
[1755783781363,25.94391848,185.45,185.4,13.06832447]
[1755783781582,25.94391848,185.45,185.4,0.72]
[1755783781889,26.06,185.48,185.39,0.03]
[1755783781890,12.34832447,185.41,185.39,0.03]
[1755783782206,13.59559401,185.43,185.39,0.03]
[1755783782884,25.94391848,185.41,185.39,0.03]
[1755783783071,12.34832447,185.4,185.39,0.03]
[1755783783382,13.00832447,185.4,185.39,0.03]
[1755783783591,0.66,185.4,185.39,0.03]
[1755783783896,12.34832447,185.4,185.39,0.03]
[1755783784096,13.59559401,185.41,185.39,0.03]
[1755783784600,14.25559401,185.41,185.39,0.03]
[1755783784763,13.59559401,185.41,185.39,0.03]
[1755783785499,8.74323276,185.4,185.39,0.03]
[1755783786059,39.59559401,185.38,185.37,0.03]
[1755783786292,47.67882677,185.38,185.37,0.03]
[1755783786458,39.59559401,185.38,185.37,0.03]
[1755783787065,48.33882677,185.38,185.37,0.03]
[1755783790194,51.14812346,185.38,185.37,0.03]
[1755783790564,54.75893017,185.38,185.37,0.03]
[1755783790982,54.75879021,185.38,185.37,0.03]
[1755783791587,25.14812346,185.38,185.37,0.03]
[1755783791767,16.4048907,185.38,185.37,0.03]
[1755783791973,13.59559401,185.38,185.37,0.03]
[1755783792379,39.59559401,185.38,185.37,0.03]
[1755783792693,47.67882677,185.38,185.37,0.03]
[1755783792891,48.33882677,185.38,185.37,0.03]
[1755783794378,39.59559401,185.38,185.37,0.03]
[1755783797892,39.59559401,185.38,185.37,8.78323276]
[1755783798399,13.59559401,185.4,185.37,8.78323276]
[1755783798602,0.06,185.45,185.39,8.08323276]
[1755783798772,0.06,185.45,185.42,8.08323276]
[1755783799186,39.59559401,185.43,185.42,8.08323276]
[1755783799393,13.65559401,185.45,185.41,8.08323276]
[1755783799593,13.65559401,185.45,185.37,0.03]
[1755783799594,13.65559401,185.45,185.43,8.08323276]
[1755783799899,0.06,185.45,185.44,8.08323276]
[1755783800078,0.06,185.45,185.44,8.75323276]
[1755783801475,0.06,185.45,185.42,8.08323276]
[1755783801693,14.33559401,185.45,185.38,0.67]
[1755783801871,13.65559401,185.45,185.39,8.08323276]
[1755783802077,13.65559401,185.45,185.42,8.08323276]
[1755783802271,13.65559401,185.45,185.42,8.75323276]
[1755783802501,13.65559401,185.45,185.41,8.08323276]
[1755783803008,14.33559401,185.45,185.4,8.08323276]
[1755783803212,22.41882677,185.45,185.4,8.08323276]
[1755783803501,21.67882677,185.43,185.38,8.08323276]
[1755783803799,13.59559401,185.43,185.4,8.08323276]
[1755783803976,0.06,185.45,185.42,8.08323276]